bitfinex/quotes_ETHUSD_20240614
["timestamp","ask_amount","ask_price","bid_price","bid_amount"]
[1718335983683,0.668,3498.1,3498.0,0.12865435]
[1718335984472,3.0,3498.2,3498.0,0.12865435]
[1718335984782,0.668,3498.1,3498.0,0.12865435]
[1718335986078,3.0,3498.3,3498.0,0.12865435]
[1718335986287,3.0,3498.3,3498.1,6.7609]
[1718335986453,10.442,3498.9,3498.1,6.7609]
[1718335986652,7.442,3498.9,3498.2,6.81806872]
[1718335986963,8.11,3498.9,3498.2,6.7609]
[1718335988088,0.668,3498.7,3498.2,6.7609]
[1718335988395,0.668,3498.5,3498.2,6.7609]
[1718335988688,0.668,3498.5,3498.3,0.11879419]
[1718335988854,0.668,3498.5,3498.3,0.80730744]
[1718335990484,3.0,3498.8,3498.3,0.80730744]
[1718335990701,3.668,3498.8,3498.4,6.9449]
[1718335990871,3.668,3498.8,3498.5,0.11828351]
[1718335991049,3.668,3498.8,3498.5,0.89345319]
[1718335992287,0.668,3498.6,3498.5,0.11828351]
[1718335992498,0.668,3498.6,3498.1,7.1597]
[1718335992679,0.668,3498.6,3498.2,0.11837258]
[1718335992983,0.668,3498.7,3498.2,0.11837258]
[1718335993283,0.668,3498.7,3498.3,0.72835109]
[1718335993494,3.0,3498.8,3498.4,7.10538475]
[1718335993694,3.668,3498.8,3498.4,7.10538475]
[1718335994188,7.442,3498.9,3498.4,7.10538475]
[1718335995653,7.442,3498.9,3498.5,0.05716194]
[1718335995959,3.0,3499.3,3498.7,7.0339]
[1718335996387,3.0,3499.3,3498.8,0.17514132]
[1718335996687,3.0,3499.3,3498.9,6.3515]
[1718335996990,3.0,3499.3,3499.0,0.11788313]
[1718335997495,7.442,3499.4,3499.0,0.11788313]
[1718335997698,7.442,3499.4,3499.1,0.64693831]
[1718335997849,7.442,3499.4,3499.2,0.11771814]
[1718336000716,0.668,3499.3,3499.2,0.11771814]
[1718336000931,0.668,3499.3,3498.9,6.3515]
[1718336001134,0.668,3499.3,3499.0,0.11744021]
[1718336001323,0.668,3499.3,3498.9,6.3515]
[1718336004543,0.668,3499.1,3498.1,5.9366]
[1718336004764,0.668,3498.9,3498.2,2.21228921]
[1718336004929,3.0,3499.7,3498.2,2.21228921]
[1718336005249,0.55,3499.6,3498.3,5.8753]
[1718336005439,0.668,3499.1,3498.3,5.8753]
[1718336005634,0.668,3499.1,3498.4,0.11774428]
[1718336005834,0.668,3499.1,3498.5,0.80874933]
[1718336006214,0.668,3499.1,3498.6,0.11771334]
[1718336008744,0.668,3498.9,3498.6,0.11771334]
[1718336009043,6.1563,3499.2,3497.4,1.716]
[1718336009044,0.668,3498.7,3498.0,6.44983829]
[1718336009246,0.668,3498.7,3498.1,0.64498383]
[1718336010325,0.668,3498.7,3498.0,0.00543829]
[1718336010530,0.668,3498.3,3498.0,0.00543829]
[1718336012761,3.0,3498.5,3498.0,0.00543829]
[1718336012975,0.668,3498.3,3498.0,0.00543829]
[1718336015349,0.668,3498.1,3498.0,0.00543829]
[1718336016736,0.668,3498.2,3498.0,0.00543829]
[1718336018731,0.668,3498.2,3498.1,0.11868684]
[1718336020658,6.5835,3498.2,3498.1,0.11868684]
[1718336020849,10.54185,3498.2,3498.1,0.11868684]
[1718336021251,11.09185,3498.2,3498.1,0.11868684]
[1718336021449,11.09185,3498.2,3498.0,0.00543829]
[1718336021631,0.55,3498.1,3498.0,0.00543829]
[1718336023756,3.0,3498.2,3498.0,0.00543829]
[1718336023931,0.668,3498.1,3498.0,0.00543829]
[1718336024662,3.0,3498.4,3498.0,0.00543829]
[1718336024977,3.668,3498.4,3498.0,5.98033829]
[1718336025139,0.668,3498.2,3498.0,5.98033829]
[1718336026956,0.668,3498.2,3498.0,0.00543829]
[1718336028162,1.779,3498.2,3498.0,0.00543829]
[1718336028879,1.779,3498.2,3498.1,0.1188088]
[1718336029173,1.779,3498.2,3498.0,0.00543829]
[1718336029682,1.779,3498.2,3498.1,0.1188088]
[1718336030055,1.779,3498.2,3498.0,0.00543829]
[1718336030371,0.4779,3498.1,3498.0,0.00543829]
[1718336031287,5.4992,3498.1,3498.0,0.00543829]
[1718336031486,9.0492,3498.1,3498.0,0.00543829]
[1718336031847,9.7172,3498.1,3498.0,0.00543829]
[1718336037592,9.0492,3498.1,3498.0,0.00543829]
[1718336037805,9.7172,3498.1,3498.0,0.00543829]
[1718336041010,11.15064514,3498.1,3498.0,0.00543829]
[1718336041438,11.64512184,3498.1,3498.0,0.00543829]
[1718336043930,11.15064514,3498.1,3498.0,0.00543829]
[1718336044097,11.64514889,3498.1,3498.0,0.00543829]
[1718336048858,5.95584889,3498.1,3498.0,0.00543829]
[1718336049174,6.12934514,3498.1,3498.0,0.00543829]
[1718336055081,4.7309,3497.5,3497.1,0.0758471]
[1718336055242,0.668,3497.3,3497.1,0.0758471]
[1718336055439,0.668,3497.3,3497.2,0.11571409]
[1718336055692,1.218,3497.3,3497.2,0.11571409]
[1718336055840,1.218,3497.3,3497.1,0.0758471]
[1718336056044,1.49434038,3497.2,3497.1,0.0758471]
[1718336056241,5.92778552,3497.2,3497.1,0.0758471]
[1718336056476,8.92778552,3497.2,3497.1,0.0758471]
[1718336056687,13.13558552,3497.2,3497.1,0.0758471]
[1718336056984,13.6301939,3497.2,3497.1,0.0758471]
[1718336057593,3.0,3496.7,3495.5,4.7778]
[1718336057747,0.668,3495.7,3495.5,4.7778]
[1718336057945,0.668,3495.8,3495.5,4.7778]
[1718336063063,0.668,3495.6,3494.9,4.0474]
[1718336063267,3.0,3496.2,3494.9,4.0474]
[1718336063268,7.442,3495.9,3494.9,4.0474]
[1718336063512,7.442,3495.9,3494.3,4.2321]
[1718336063683,0.668,3494.8,3494.3,5.66554514]
[1718336063883,0.668,3494.8,3494.4,0.11383568]
[1718336064967,0.668,3494.6,3494.4,0.11383568]
[1718336066417,0.55,3494.5,3493.6,0.121786]
[1718336066770,7.442,3494.7,3493.6,0.61256927]
[1718336066771,3.55,3494.6,3493.6,0.61256927]
[1718336067106,5.156,3494.6,3493.6,0.5553246]
[1718336067803,3.0,3494.6,3493.7,1.49068671]
[1718336068104,3.0,3494.6,3493.9,4.0328]
[1718336068311,7.442,3494.7,3494.0,1.4906764]
[1718336068500,7.442,3494.7,3494.1,4.39454764]
[1718336068816,7.442,3494.7,3494.3,3.8422]
[1718336068983,7.442,3494.7,3494.2,3.20667025]
[1718336068984,7.442,3495.5,3494.5,3.8422]
[1718336069329,7.442,3495.5,3494.6,5.65876563]
[1718336069601,7.442,3495.5,3494.6,5.60154514]
[1718336069765,7.442,3495.5,3494.7,0.56015451]
[1718336069970,7.442,3495.5,3494.6,4.1681]
[1718336070915,7.442,3495.5,3494.7,1.49066987]
[1718336071206,7.442,3495.5,3494.9,4.2051]
[1718336071428,7.442,3495.5,3495.1,1.716]
[1718336071712,1.606,3497.0,3495.0,1.49065686]
[1718336071713,7.442,3496.5,3495.4,3.9894]
[1718336072010,7.442,3496.5,3495.6,3.9894]
[1718336072174,7.442,3496.5,3495.8,3.9894]
[1718336072373,7.442,3496.5,3495.9,1.49064395]
[1718336074177,7.442,3496.5,3495.9,1.43344514]
[1718336074376,7.442,3496.5,3495.8,3.9894]
[1718336074377,7.442,3496.5,3496.0,0.54228451]
[1718336074681,7.442,3496.5,3496.1,0.05719966]
[1718336074900,19.822,3497.0,3496.1,0.05719966]
[1718336075118,3.0,3496.9,3496.1,0.05719966]
[1718336076220,3.0,3496.9,3496.0,0.54228451]
[1718336076811,3.0,3496.9,3496.1,0.45316845]
[1718336079999,3.0,3496.9,3495.8,3.9894]
[1718336080589,0.55,3496.8,3495.8,3.9894]
[1718336082410,0.55,3496.8,3494.5,3.0]
[1718336082411,4.7785,3496.8,3495.0,1.716]
[1718336082600,3.0,3496.7,3495.1,1.54699884]
[1718336082805,4.22205,3496.7,3495.2,0.74869988]
[1718336083106,4.22205,3496.7,3495.3,1.54689863]
[1718336083310,4.22205,3496.7,3495.4,4.224]
[1718336083511,4.22205,3496.7,3495.4,4.3374034]
[1718336083710,0.900055,3496.6,3495.4,4.98935824]
[1718336084830,0.55,3496.5,3495.4,4.3374034]
[1718336086599,0.55,3496.5,3495.4,4.224]
[1718336086799,0.55,3496.5,3494.8,1.716]
[1718336087102,0.55,3496.5,3494.9,1.43344514]
[1718336087324,0.55,3496.5,3494.9,1.54376036]
[1718336087633,0.7278105,3496.4,3495.0,0.68226604]
[1718336087794,0.55,3496.3,3495.1,0.11021501]
[1718336088439,3.5693,3496.2,3495.1,0.11021501]
[1718336088635,3.78471105,3496.1,3495.1,0.11021501]
[1718336088841,3.78471105,3496.1,3494.9,1.43344514]
[1718336089005,3.78471105,3496.1,3495.2,0.11020539]
[1718336089215,0.78471105,3496.1,3494.9,1.43344514]
[1718336090124,0.78471105,3496.1,3495.0,0.05721477]
[1718336090321,0.78471105,3496.1,3495.0,0.50535599]
[1718336090623,3.4343,3496.0,3495.1,0.11025549]
[1718336090823,3.55,3495.9,3494.7,3.5629]
[1718336091026,3.55,3495.9,3494.8,0.11040582]
[1718336091338,4.32690111,3495.9,3494.9,0.05721986]
[1718336093109,3.0,3495.9,3495.0,1.43344514]
[1718336093309,7.442,3496.3,3495.0,1.43344514]
[1718336093310,3.0,3496.2,3495.0,1.43344514]
[1718336093514,3.0,3496.2,3495.1,0.11025549]
[1718336095134,3.0,3496.2,3495.2,0.05721178]
[1718336095304,3.0,3496.2,3495.2,0.11020539]
[1718336095728,4.46247105,3496.2,3495.0,1.43344514]
[1718336095939,4.46247105,3496.2,3495.3,0.11015529]
[1718336096103,4.46247105,3496.2,3495.0,1.43344514]
[1718336096621,3.0,3496.2,3495.1,3.64781179]
[1718336096822,3.0,3496.2,3495.2,0.11027016]
[1718336097031,3.0,3496.2,3495.3,0.05721033]
[1718336097202,3.0,3496.2,3495.4,0.16738031]
[1718336097403,3.0,3496.2,3495.6,3.42]
[1718336097603,3.0,3496.2,3495.7,0.16720435]
[1718336097925,7.442,3496.3,3495.8,0.05720492]
[1718336098107,7.442,3496.7,3495.8,0.05720492]
[1718336098307,7.442,3496.7,3495.9,0.10984259]
[1718336098527,3.3771,3496.5,3495.9,0.10984259]
[1718336098838,3.3771,3496.5,3495.2,3.3673]
[1718336099008,3.3771,3496.5,3495.3,1.54349517]
[1718336099207,3.0,3496.4,3495.3,1.54349517]
[1718336100335,3.0,3496.4,3495.3,0.11005003]
[1718336100539,3.0,3496.4,3495.4,3.351]
[1718336100540,0.83593,3496.3,3495.4,3.351]
[1718336101164,0.83593,3496.3,3495.5,0.10994983]
[1718336101551,3.0,3496.4,3495.5,0.10994983]
[1718336103262,3.0,3496.4,3495.5,1.54339497]
[1718336103438,1.9822,3496.6,3495.6,0.05720799]
[1718336103439,3.0,3496.6,3495.6,0.05720799]
[1718336103633,3.0,3496.6,3495.7,0.10989013]
[1718336103839,3.0,3496.6,3495.5,1.43344514]
[1718336103840,3.0,3496.6,3495.8,0.05720438]
[1718336104041,3.0,3496.6,3495.9,0.10974949]
[1718336104852,3.0,3496.6,3496.1,3.4432]
[1718336105154,3.0,3496.6,3496.2,0.10959926]
[1718336107829,4.0442,3496.6,3496.2,0.10959926]
[1718336108158,4.0442,3496.6,3495.7,3.6025]
[1718336108772,4.0442,3496.6,3495.8,0.1093422]
[1718336110787,4.0442,3496.6,3495.8,0.16654689]
[1718336110964,4.0442,3496.6,3495.8,0.1093422]
[1718336111129,1.14862,3496.5,3495.8,0.1093422]
[1718336111328,3.0,3496.5,3495.8,0.16654603]
[1718336111722,3.0,3496.6,3495.8,0.16654603]
[1718336113996,3.0,3496.6,3495.8,0.1093422]
[1718336114542,3.4284,3496.5,3495.8,0.1093422]
[1718336114742,3.0,3496.4,3495.8,0.1093422]
[1718336114979,3.0,3496.4,3495.4,3.6018]
[1718336114980,0.94284,3496.3,3495.4,3.6018]
[1718336115575,0.94284,3496.3,3495.5,0.10954508]
[1718336117443,0.94284,3496.3,3495.1,2.5642]
[1718336117679,0.94284,3496.3,3495.2,0.10984109]
[1718336125262,0.94284,3496.3,3495.4,2.6707]
[1718336125458,7.442,3496.7,3495.6,2.6707]
[1718336125459,3.0,3496.6,3495.6,2.6707]
[1718336125768,3.0,3496.6,3495.7,0.10993467]
[1718336129283,3.0,3496.6,3495.9,2.5684]
[1718336129687,3.0,3496.6,3496.0,0.10978443]
[1718336129876,4.0442,3496.6,3496.0,0.10978443]
[1718336131485,4.0442,3496.6,3496.0,0.16353174]
[1718336133502,7.442,3496.7,3496.0,0.16353174]
[1718336133878,7.442,3496.7,3495.9,2.5684]
[1718336134521,7.442,3496.7,3496.0,0.05720331]
[1718336134823,7.442,3496.7,3496.2,2.7435]
[1718336135006,7.442,3496.7,3496.4,2.7435]
[1718336135318,7.442,3496.7,3496.5,0.16289623]
[1718336137191,7.442,3496.7,3496.4,2.7435]
[1718336144689,3.0,3497.1,3496.4,2.7435]
[1718336144913,2.56087,3497.0,3496.4,2.7435]
[1718336145127,3.0,3496.9,3496.4,2.7435]
[1718336145482,3.0,3496.9,3495.8,2.5767]
[1718336145688,3.0,3496.9,3495.9,0.16302377]
[1718336146012,3.0,3496.9,3495.8,2.5767]
[1718336146195,0.556087,3496.8,3495.8,2.5767]
[1718336146987,2.8012,3496.7,3495.8,2.5767]
[1718336147542,3.668,3496.6,3495.8,2.5767]
[1718336147906,3.668,3496.6,3495.9,0.16308852]
[1718336148590,3.668,3496.6,3495.8,2.5767]
[1718336148783,4.3705287,3496.6,3495.8,2.5767]
[1718336148986,4.3705287,3496.6,3495.9,0.16308852]
[1718336149219,4.3705287,3496.6,3495.8,2.5767]
[1718336149454,4.3705287,3496.6,3496.0,0.1630369]
[1718336149624,4.3705287,3496.6,3495.8,2.5767]
[1718336149825,0.77278157,3496.5,3495.8,2.5767]
[1718336150133,0.77278157,3496.5,3495.1,2.6914]
[1718336150286,0.668,3496.2,3495.2,0.668]
[1718336150620,0.668,3496.2,3495.3,0.16356424]
[1718336151029,0.668,3496.0,3495.3,0.16356424]
[1718336151396,0.668,3496.0,3495.1,4.12484514]
[1718336151898,0.668,3496.0,3495.2,0.16361588]
[1718336152809,3.0,3496.1,3495.2,0.16361588]
[1718336155001,3.0,3496.1,3495.1,4.12484514]
[1718336155204,1.33208782,3496.0,3494.8,2.6137]
[1718336155525,1.88208782,3496.0,3494.9,0.16417565]
[1718336156967,1.88208782,3496.0,3494.8,2.6137]
[1718336157118,0.7760966,3495.9,3494.8,2.6137]
[1718336157436,3.7760966,3495.9,3494.9,0.16417565]
[1718336157806,3.7760966,3495.9,3494.8,2.6137]
[1718336158227,3.7760966,3495.9,3494.9,0.16417565]
[1718336158546,3.7760966,3495.9,3494.8,2.6137]
[1718336158746,0.56581844,3495.8,3494.8,2.6137]
[1718336158922,0.56581844,3495.8,3494.9,0.16417565]
[1718336159123,0.56581844,3495.8,3494.8,2.6137]
[1718336160761,2.8253,3495.7,3494.8,2.6137]
[1718336163730,2.8253,3495.7,3494.4,2.6541]
[1718336163731,3.0,3495.6,3494.4,2.6541]
[1718336163929,3.0,3495.6,3494.5,1.87065514]
[1718336164127,3.0,3495.6,3494.5,2.03534917]
[1718336165542,2.7636,3495.4,3494.5,0.16469403]
[1718336165743,3.55,3495.3,3494.5,0.16469403]
[1718336165943,3.55,3495.3,3494.1,2.7467]
[1718336166347,2.7636,3495.2,3494.2,0.16504745]
[1718336166646,3.0,3495.1,3494.1,2.7467]
[1718336166989,3.63136,3495.1,3494.2,0.16504745]
[1718336168614,3.63136,3495.1,3493.9,2.6911]
[1718336168847,3.63136,3495.1,3493.9,4.12454514]
[1718336169148,3.63136,3495.1,3494.0,0.16515079]
[1718336170044,2.7951,3495.0,3494.0,0.16515079]
[1718336170251,2.618,3494.8,3494.0,0.16515079]
[1718336170639,3.0,3494.7,3494.0,0.16515079]
[1718336172100,7.442,3495.0,3494.1,4.24877708]
[1718336172302,7.442,3495.0,3494.2,0.16504745]
[1718336172599,7.442,3495.0,3494.4,2.7581]
[1718336172756,7.442,3495.0,3494.5,2.10384936]
[1718336173093,7.442,3495.0,3494.6,2.5509]
[1718336173396,7.442,3495.0,3494.7,1.6554549]
[1718336173694,7.442,3495.0,3494.8,0.05722063]
[1718336173923,7.442,3495.8,3494.9,0.16468583]
[1718336174074,7.442,3495.8,3495.0,0.05721655]
[1718336174753,7.442,3495.8,3495.1,0.16458253]
[1718336175161,3.0,3495.7,3495.0,0.05721655]
[1718336175567,3.0,3495.7,3495.1,0.16458253]
[1718336175818,7.442,3495.8,3495.2,0.05721413]
[1718336176159,8.46082,3495.8,3495.3,0.16447925]
[1718336176577,8.46082,3495.8,3494.7,0.05722159]
[1718336176779,7.442,3495.8,3494.8,0.05722132]
[1718336177413,7.442,3495.8,3494.9,1.43344514]
[1718336177704,7.442,3495.8,3495.0,0.16451674]
[1718336178792,7.442,3495.8,3495.1,0.05721421]
[1718336179170,7.442,3495.8,3495.2,0.16441346]
[1718336179601,7.442,3495.8,3494.9,1.43344514]
[1718336179783,7.442,3495.8,3495.3,0.16436182]
[1718336179991,5.7462,3496.1,3494.6,2.5509]
[1718336180164,3.55,3496.0,3494.7,1.43344514]
[1718336180370,3.55,3496.0,3494.7,1.59811684]
[1718336180878,3.55,3496.0,3494.7,0.1646717]
[1718336181084,6.16182,3496.0,3494.8,0.33287534]
[1718336181268,6.16182,3496.0,3494.9,0.16456839]
[1718336182814,3.0,3496.0,3495.2,2.7319]
[1718336183126,3.0,3496.1,3495.3,1.59780696]
[1718336183471,3.0,3496.1,3495.4,0.05720741]
[1718336183674,7.442,3496.2,3495.5,0.60294999]
[1718336183873,7.442,3496.2,3495.6,0.0572064]
[1718336184102,7.442,3496.6,3495.7,0.16415529]
[1718336184327,7.442,3496.6,3495.9,2.5943]
[1718336184824,7.442,3496.6,3496.0,0.16400042]
[1718336185029,7.442,3496.6,3496.0,0.22120475]
[1718336185307,7.442,3496.6,3496.0,0.16400042]
[1718336185673,7.442,3496.6,3496.0,0.22120133]
[1718336185909,7.442,3496.6,3496.0,0.16400042]
[1718336188712,3.0,3496.9,3496.0,1.59744556]
[1718336189015,3.0,3496.9,3496.1,0.41917456]
[1718336189016,3.0,3496.8,3496.1,0.41917456]
[1718336189379,3.0,3496.9,3496.2,0.05719719]
[1718336190719,3.0,3496.9,3496.1,0.41917456]
[1718336190924,3.0,3496.9,3496.2,0.44469197]
[1718336191239,3.0,3496.9,3496.2,0.50188917]
[1718336192876,3.0,3496.9,3496.2,1.16988917]
[1718336193104,3.0,3496.9,3496.3,2.7839]
[1718336193373,3.0,3496.9,3496.4,0.16304904]
[1718336194214,7.442,3497.0,3496.4,1.29420975]
[1718336194412,7.442,3497.0,3496.6,0.668]
[1718336194651,7.442,3497.0,3496.8,0.668]
[1718336194855,7.442,3497.7,3496.8,0.72518856]
[1718336195056,7.442,3497.7,3497.2,0.668]
[1718336195347,7.442,3497.7,3497.4,0.668]
[1718336195549,7.442,3497.7,3497.4,0.72518137]
[1718336195769,7.442,3497.7,3497.5,0.16220231]
[1718336195929,19.822,3498.3,3497.5,0.16220231]
[1718336196119,22.08277,3498.3,3497.4,0.72518137]
[1718336196320,22.08277,3498.3,3497.4,0.05718137]
[1718336196521,22.08277,3498.3,3497.0,2.6035]
[1718336196522,0.668,3498.0,3497.0,2.6035]
[1718336196759,22.08277,3498.3,3497.1,2.26385377]
[1718336197059,22.08277,3498.3,3497.1,1.59585377]
[1718336197229,5.486847,3498.2,3497.1,1.59585377]
[1718336197433,3.3578,3498.1,3497.1,0.16240863]
[1718336197760,3.0,3498.0,3496.6,2.7632]
[1718336197921,3.0,3498.0,3497.2,0.16215477]
[1718336198250,3.0,3498.0,3496.7,1.43344514]
[1718336198462,0.8844647,3497.9,3496.7,1.43344514]
[1718336198673,0.8844647,3497.9,3496.8,0.16236112]
[1718336199160,0.8844647,3497.9,3496.7,1.43344514]
[1718336199337,0.55,3497.8,3496.9,0.16230953]
[1718336199543,0.44344647,3497.7,3496.6,2.7632]
[1718336199739,2.6434,3497.6,3497.0,0.16225794]
[1718336199941,3.0,3497.5,3496.6,2.7632]
[1718336200171,3.0,3497.5,3496.7,0.16241271]
[1718336201350,3.66368465,3497.5,3496.7,0.16241271]
[1718336202836,3.66368465,3497.5,3496.1,2.5729]
[1718336203056,3.66368465,3497.5,3496.8,0.16220328]
[1718336203261,3.66368465,3497.5,3496.2,1.87813711]
[1718336203638,3.66368465,3497.5,3496.3,0.16246129]
[1718336203839,0.63070847,3497.4,3496.3,0.16246129]
[1718336205990,0.55,3497.3,3496.3,0.16246129]
[1718336206139,0.55,3497.3,3496.2,0.44469197]
[1718336206340,0.55,3497.3,3496.3,0.16246129]
[1718336206554,0.55,3497.3,3496.2,0.44469197]
[1718336206768,1.29877931,3497.3,3496.2,0.44469197]
[1718336206982,1.29877931,3497.3,3496.3,0.16246129]
[1718336207436,1.29877931,3497.3,3496.1,2.5729]
[1718336207640,1.29877931,3497.3,3496.4,0.16240968]
[1718336207878,1.29877931,3497.3,3496.1,2.5729]
[1718336208090,0.4962464,3497.2,3496.1,2.83019]
[1718336208487,0.4962464,3497.2,3496.2,0.1625129]
[1718336210964,0.4962464,3497.2,3496.2,0.2197108]
[1718336211160,3.0,3497.3,3496.3,0.05719785]
[1718336211360,3.0,3497.3,3496.3,0.21965914]
[1718336212482,3.0,3497.3,3496.5,2.7734]
[1718336212853,3.0,3497.3,3496.6,0.16230648]
[1718336215152,3.0,3497.3,3496.6,0.21949717]
[1718336215582,3.0,3497.3,3496.6,0.16230648]
[1718336218275,4.37490847,3497.3,3496.6,0.16230648]
[1718336219185,4.37490847,3497.3,3496.4,1.43344514]
[1718336219357,4.37490847,3497.3,3496.7,0.16244096]
[1718336219562,4.37490847,3497.3,3496.4,1.43344514]
[1718336219908,4.37490847,3497.3,3496.8,0.16238937]
[1718336220209,1.24805931,3497.2,3496.9,0.16233778]
[1718336220412,4.24805931,3497.2,3496.4,1.43344514]
[1718336220702,3.0,3497.2,3497.0,0.16228619]
[1718336220850,3.668,3497.3,3496.4,1.43344514]
[1718336221055,3.0,3497.2,3497.1,0.1622346]
[1718336221256,0.668,3497.3,3496.4,1.43344514]
[1718336221493,0.668,3497.3,3497.1,0.1622346]
[1718336221690,0.668,3497.3,3496.4,1.43344514]
[1718336221895,0.668,3497.3,3496.4,2.08618965]
[1718336222096,0.668,3497.3,3496.5,0.16254416]
[1718336222607,2.6232,3497.2,3496.5,0.16254416]
[1718336222758,3.0,3497.1,3496.6,0.16254921]
[1718336222959,3.0,3497.1,3496.2,3.376]
[1718336223161,3.0,3497.1,3496.3,0.16270402]
[1718336227108,3.0,3497.1,3496.4,0.668]
[1718336227401,3.0,3497.1,3496.5,0.16268985]
[1718336229630,3.0,3497.1,3496.3,0.668]
[1718336229785,3.0,3497.1,3496.6,0.16263825]
[1718336229985,3.0,3497.1,3496.3,0.668]
[1718336230208,3.0,3497.1,3496.7,0.16258665]
[1718336230406,3.0,3497.1,3496.3,0.668]
[1718336230733,3.0,3497.1,3496.8,0.16253505]
[1718336230926,3.0,3497.1,3496.3,0.668]
[1718336231124,3.0,3497.1,3496.9,0.16248346]
[1718336231332,0.668,3496.9,3495.6,4.3275]
[1718336231540,0.668,3496.9,3495.7,1.43344514]
[1718336231814,0.668,3496.9,3495.8,1.40714565]
[1718336232154,0.668,3496.9,3495.9,1.43344514]
[1718336232305,3.0,3497.1,3495.9,1.43344514]
[1718336232503,0.668,3496.8,3496.0,0.1629479]
[1718336235723,3.0,3497.1,3496.0,0.1629479]
[1718336236022,0.668,3496.9,3495.9,0.668]
[1718336236391,3.0,3497.1,3495.9,0.668]
[1718336236591,0.668,3496.9,3495.9,0.668]
[1718336238821,2.6267,3496.8,3495.8,3.3706]
[1718336239027,3.0,3496.7,3495.9,0.16307638]
[1718336240830,3.668,3496.7,3495.9,0.16307638]
[1718336243634,0.668,3496.5,3495.9,0.16307638]
[1718336243817,3.0,3496.7,3495.2,0.21142651]
[1718336243818,2.5103,3496.3,3495.4,3.2603]
[1718336244195,2.5103,3496.3,3495.5,0.16347715]
[1718336245233,3.1783,3496.3,3495.5,0.16347715]
[1718336245610,3.1783,3496.3,3495.5,0.22068716]
[1718336245819,3.1783,3496.3,3495.5,0.16347715]
[1718336246017,0.668,3496.1,3495.3,2.4874]
[1718336246233,0.668,3496.1,3495.4,0.16364213]
[1718336247042,0.668,3496.1,3495.5,0.16359049]
[1718336247203,0.668,3496.1,3495.2,0.21142651]
[1718336247403,0.668,3496.1,3495.3,0.16369376]
[1718336247603,3.0,3496.2,3495.3,0.16369376]
[1718336247897,0.668,3496.0,3495.2,0.21142651]
[1718336248322,0.668,3496.0,3495.3,0.16369376]
[1718336248737,4.29523,3496.2,3495.2,0.21142651]
[1718336248907,0.668,3496.1,3495.3,0.05721237]
[1718336250029,0.668,3496.1,3495.2,0.21142651]
[1718336250224,0.668,3496.1,3495.2,0.54810916]
[1718336250637,0.668,3496.1,3495.3,0.16369376]
[1718336251615,4.29523,3496.2,3495.3,0.16369376]
[1718336251960,0.668,3496.0,3495.2,0.54810916]
[1718336252577,0.668,3496.0,3495.3,0.16398119]
[1718336253402,0.668,3496.0,3495.3,0.55073023]
[1718336253748,9.9523,3496.3,3495.3,0.55073023]
[1718336253749,7.442,3496.3,3495.5,2.4476]
[1718336254049,7.442,3496.3,3495.6,0.88903286]
[1718336255540,7.442,3496.3,3495.6,0.83182629]
[1718336255905,7.442,3496.3,3495.7,0.05720556]
[1718336256113,0.668,3496.5,3495.7,0.53421326]
[1718336256336,3.668,3496.5,3495.8,0.22102578]
[1718336259253,3.0,3496.5,3495.8,0.22102578]
[1718336260838,3.0,3496.6,3495.8,0.22102578]
[1718336261058,3.0,3496.6,3495.8,0.74573364]
[1718336262249,3.0,3496.6,3495.8,0.58191343]
[1718336264521,3.0,3496.6,3495.9,2.5]
[1718336264716,3.0,3496.6,3496.0,0.05720341]
[1718336264916,3.0,3496.6,3496.0,0.83131618]
[1718336265154,3.0,3496.6,3496.1,0.3856024]
[1718336265520,3.0,3496.6,3496.2,0.16314819]
[1718336271040,0.668,3496.9,3496.2,0.16314819]
[1718336271240,0.668,3496.9,3495.9,3.168]
[1718336272245,0.668,3496.9,3496.0,0.05720072]
[1718336272651,0.668,3496.9,3495.9,3.168]
[1718336272978,0.668,3496.9,3496.0,0.42647151]
[1718336273541,0.668,3496.9,3496.0,0.36927079]
[1718336275652,0.668,3496.9,3496.1,0.05720076]
[1718336276018,3.0,3497.0,3496.1,0.05720076]
[1718336276279,3.0,3497.0,3496.2,2.3759]
[1718336276465,3.668,3497.0,3496.2,2.3759]
[1718336277090,3.0,3497.0,3496.2,2.3759]
[1718336277387,3.668,3497.0,3496.2,2.3759]
[1718336280244,3.668,3497.0,3496.2,2.71721708]
[1718336282059,3.0,3497.0,3496.2,2.71721708]
[1718336282470,3.668,3497.0,3496.2,2.71721708]
[1718336282670,3.0,3497.0,3496.3,0.05719823]
[1718336282875,3.0,3497.0,3496.3,0.56441088]
[1718336283052,3.0,3497.0,3496.3,0.50721265]
[1718336283852,3.668,3497.0,3496.3,0.56440909]
[1718336284085,3.668,3497.0,3496.3,0.50721265]
[1718336284753,3.668,3497.0,3496.3,0.56440911]
[1718336285784,3.0,3497.0,3496.4,0.29403091]
[1718336286083,7.442,3497.1,3496.9,0.668]
[1718336286390,7.442,3497.1,3497.0,3.85004514]
[1718336286549,7.442,3497.1,3497.0,4.01258223]
[1718336287081,2.9377,3498.2,3497.0,4.01258223]
[1718336287282,1.03797,3498.1,3497.3,0.668]
[1718336287491,0.668,3498.1,3497.1,0.21953106]
[1718336287663,0.668,3498.1,3497.4,0.16204751]
[1718336287867,0.668,3498.1,3497.1,0.7251791]
[1718336288056,0.668,3498.1,3497.5,0.16199593]
[1718336288262,0.668,3498.1,3497.0,3.85004514]
[1718336288486,0.668,3498.1,3497.6,0.16194436]
[1718336288689,0.668,3498.1,3497.2,0.05718119]